Cogmind - Beta 11 X6 @@@ ROGUE MODE // 2021.07.30 @ 20:27:34 Player: AlmondRoll Result: Destroyed by exploding Fusion Modulator Performance ------------- Evolutions (0) 0 Regions Visited (1) 200 Robots Destroyed (15) 75 Value Destroyed (310) 310 Prototype IDs (0) 0 Alien Tech Used (0) 0 Bonus (0) 0 TOTAL SCORE: 585 Bonus ------- None Cogmind --------- Core Integrity 0/250 Matter 286/300 Energy 121/125 System Corruption 1% Temperature Cool (14) Movement Treading (160) Location -10/Materials Parts ------- > --- POWER (1) -------- Light Ion Engine > --- PROPULSION (2) --- Light Treads Light Treads > --- UTILITY (2) ------ Improved Heat Sink Small Storage Unit > --- WEAPON (2) ------- EM Pulse Gun Medium Laser > --- INVENTORY (8) ---- Ion Engine Compact Wheel Hover Unit Hover Unit Hover Unit Signal Interpreter Grenade Launcher Grenade Launcher Peak State ------------ > --- POWER ------------ Light Ion Engine > --- PROPULSION ------- Light Treads Light Treads > --- UTILITY ---------- Improved Heat Sink Small Storage Unit > --- WEAPON ----------- EM Pulse Gun Medium Laser > --- INVENTORY -------- Ion Engine Compact Wheel Hover Unit Hover Unit Hover Unit Signal Interpreter Grenade Launcher Grenade Launcher [Rating: 9] Favorites ----------- Power Light Ion Engine Engine Light Ion Engine Propulsion Light Treads Treads Light Treads Leg Aluminum Leg Wheel Compact Wheel Utility Small Storage Unit Device Improved Heat Sink Storage Small Storage Unit Weapon EM Pulse Gun Energy Gun EM Pulse Gun Ballistic Gun Assault Rifle Build | -11 -10 ------- Run | Scr Mat Slots Evolved . | . . Power . | . . Propulsion . | . . Utility . | . . Weapon . | . . Parts Attached 9 | 3 6 Power . | . . Engine . | . . Core . | . . Reactor . | . . Propulsion 4 | 2 2 Treads 2 | . 2 Leg . | . . Wheel 2 | 2 . Hover . | . . Flight . | . . Utility 1 | . 1 Device 1 | . 1 Storage . | . . Processor . | . . Hackware . | . . Protection . | . . Artifact . | . . Weapon 4 | 1 3 Energy Gun 2 | . 2 Energy Cannon . | . . Ballistic Gun 2 | 1 1 Ballistic Cannon . | . . Launcher . | . . Special Weapon . | . . Impact Weapon . | . . Slashing Weapon . | . . Piercing Weapon . | . . Special Melee Weapon . | . . Unidentified Prototypes . | . . Parts Lost 2 | . 2 Power . | . . Propulsion . | . . Utility . | . . Weapon 2 | . 2 Highest Loss Streak 2 | . 2 Average Slot Usage (%) 91 | . 91 Engine 14 | . 14 Treads 22 | . 22 Wheel 6 | . 6 Device 7 | . 7 Storage 14 | . 14 Energy Gun 18 | . 18 Ballistic Gun 8 | . 8 Naked Turns . | . . Heaviest Build 13 | 12 13 Greatest Support 40 | 32 40 Greatest Overweight (x) . | . . Average Overweight (x) . | . . Largest Inventory Capacity 8 | 8 8 Average Capacity 8 | 8 8 Most Carried 8 | 6 8 Average Carried 7 | 4 7 Final Capacity 8 | 8 8 Final Carried 8 | 4 8 Class Distribution -------------------- 100% | Mutant Dominant Class ---------------- Mutant | -10/Materials Resources | -11 -10 ----------- Run | Scr Mat Matter Collected 359 | 236 123 Remotely . | . . Salvage Created 625 | 89 536 Parts 32 | 2 30 Haulers Intercepted 2 | . 2 Recyclers Shooed 1 | 1 . Parts Field Recycled . | . . Retrieved Matter . | . . Parts Self-Destructed . | . . Prevented . | . . Kills | -11 -10 ------- Run | Scr Mat Combat Hostiles Destroyed 9 | . 9 Guns 9 | . 9 Classes Destroyed 6 | 1 5 Worker 1 | . 1 Hauler 2 | . 2 Recycler 2 | 1 1 Watcher 1 | . 1 Swarmer 3 | . 3 Grunt 6 | . 6 Best Kill Streak 7 | 1 7 Combat Bots Only 7 | . 7 Max Kills in Single Turn 2 | 1 2 Gunslinging 1 | . 1 Exploded . | . . Melee . | . . Uniques/NPCs Destroyed . | . . Combat | -11 -10 -------- Run | Scr Mat Damage Taken 668 | . 668 Core 324 | . 324 Absorbed by Shields . | . . Core Remaining (%) 100 | 100 . Volleys Fired 36 | 2 34 Largest 2 | 2 2 Hottest 90 | 60 90 Shots Fired 63 | 4 59 Gun 63 | 4 59 Cannon . | . . Launcher . | . . Special . | . . Kinetic 31 | 2 29 Thermal 11 | . 11 Explosive . | . . Electromagnetic 21 | 2 19 Robot Hit Streak 9 | 3 9 Robot Miss Streak 3 | . 3 Penetration Max . | . . Secondary Targets 3 | . 3 Max Gunslinging Chain 1 | . 1 Shots Hit Robots 38 | 3 35 Core Hits 18 | 1 17 Critical Kills . | . . Critical Parts Destroyed . | . . Critical Strikes 2 | . 2 Burn 2 | . 2 Melee Attacks . | . . Impact . | . . Slashing . | . . Piercing . | . . Sneak Attacks . | . . Combat Hostiles . | . . Follow-up Attacks . | . . Damage Inflicted 586 | 55 531 Guns 552 | 55 497 Cannons . | . . Explosions 34 | . 34 Melee . | . . Ramming . | . . Kinetic 272 | 25 247 Thermal 114 | . 114 Explosive . | . . Electromagnetic 200 | 30 170 Impact . | . . Slashing . | . . Piercing . | . . Highest Corruption . | . . Average Corruption . | . . Corruption Purged . | . . Overload Shots . | . . Overflow Damage . | . . Projectiles . | . . Explosions . | . . Melee . | . . Knockbacks . | . . Impact . | . . Kinetic . | . . Secondary . | . . Self-Inflicted Damage . | . . Shots . | . . Rammed . | . . Targets Rammed . | . . Kicked . | . . Crushed . | . . Highest Temperature 22 | . 22 Average Temperature 8 | . 8 Received Heat Transfer 216 | . 216 Siege Activations . | . . Robots Corrupted . | . . Combat Hostiles . | . . Parts Fried 1 | 1 . Impact Corruptions . | . . Robots Melted . | . . Combat Hostiles . | . . Parts Melted . | . . Heat Transferred 370 | . 370 Parts Sabotaged . | . . Parts Stolen . | . . Parts Stripped . | . . Power Chain Reactions 1 | . 1 Missiles Intercepted . | . . Alert | -11 -10 ------- Run | Scr Mat Peak Influence 337 | 5 337 Initial 3 | . 3 Average 189 | 2 196 Maximum Alert Level 1 | . 1 Low Security (%) 44 | 100 42 Level 1 55 | . 57 Level 2 . | . . Level 3 . | . . Level 4 . | . . Level 5 . | . . High Security . | . . Max Security . | . . Squads Dispatched 2 | . 2 Investigation 1 | . 1 Extermination . | . . Reinforcement 1 | . 1 Assault . | . . Garrison . | . . Intercept . | . . Construction Impeded . | . . Haulers Reinforced . | . . Active Scanning Responses . | . . Cargo Convoy Interrupts . | . . Stealth | -11 -10 --------- Run | Scr Mat Distress Signals 1 | . 1 Communications Jammed . | . . Distress Signals . | . . Times Spotted 15 | . 15 Peak Tracking Total 8 | . 8 Tactical Retreats . | . . Traps | -11 -10 ------- Run | Scr Mat Traps Triggered 1 | . 1 Indirectly . | . . Trap Hack Attempts . | . . Triggered . | . . Disarmed . | . . Reprogrammed . | . . Reused . | . . Traps Extracted . | . . Installed . | . . Triggered . | . . Machines | -11 -10 ---------- Run | Scr Mat Machines Disabled 3 | . 3 Max in Single Turn 3 | . 3 Machines Sabotaged . | . . Garrisons Compromised . | . . Overloaded Fab Kills . | . . Fab Network Shutdowns . | . . Hacking | -11 -10 --------- Run | Scr Mat Machines Accessed 3 | . 3 Terminals 2 | . 2 Fabricators . | . . Repair Stations . | . . Recycling Units 1 | . 1 Scanalyzers . | . . Garrison Access . | . . Total Hacks 22 | . 22 Successful 13 | . 13 Failed 9 | . 9 Catastrophic . | . . Database Lockouts . | . . Manual 20 | . 20 Terminals 14 | . 14 Fabricators . | . . Repair Stations . | . . Recycling Units 8 | . 8 Scanalyzers . | . . Garrison Access . | . . Terminal Hacks 5 | . 5 Robot Analysis 5 | . 5 Fabricator Hacks . | . . Repair Station Hacks . | . . Recycling Unit Hacks 2 | . 2 Retrieve Components 2 | . 2 Scanalyzer . | . . Garrison Access Hacks . | . . Unauthorized Hacks 6 | . 6 Terminals 2 | . 2 Botnet 2 | . 2 Fabricators . | . . Repair Stations . | . . Recycling Units 4 | . 4 Monitor 1 | . 1 Reject 1 | . 1 Recyclers 1 | . 1 Mask 1 | . 1 Scanalyzers . | . . Garrison Access . | . . Data Cores Recovered . | . . Used . | . . Hacking Detections 2 | . 2 Full Trace Events 1 | . 1 Feedback Events . | . . Feedback Blocked . | . . Robot Schematics Acquired . | . . Robots Built . | . . Matter . | . . Time . | . . Total Robot Build Rating . | . . Part Schematics Acquired . | . . Parts Built . | . . Matter . | . . Time . | . . Total Part Build Rating . | . . Parts Repaired . | . . Time . | . . Parts Recycled . | . . Recycled Matter . | . . Retrieved Matter . | . . Retrieved Components 7 | . 7 Parts Scanalyzed . | . . Part Schematics Acquired . | . . Parts Damaged . | . . Bothacking | -11 -10 ------------ Run | Scr Mat Used RIF Installer . | . . Robots Hacked . | . . Non-combat . | . . Combat . | . . Robot Hacks Applied . | . . Relay Couplers Released . | . . Robots Rewired . | . . Allies Hacked . | . . Hacks Repelled . | . . Allies | -11 -10 -------- Run | Scr Mat Total Allies . | . . Largest Group . | . . Highest-Rated Group . | . . Highest-Rated Ally . | . . Total Orders . | . . Ally Attacks . | . . Total Damage . | . . Kills . | . . Allies Corrupted . | . . Allies Melted . | . . Intel | -11 -10 ------- Run | Scr Mat Robot Analysis Total 5 | . 5 Derelict Logs Recovered . | . . Drone Launches . | . . Drone Recoveries . | . . Exploration | -11 -10 ------------- Run | Scr Mat Turns Passed 429 | 14 415 Spaces Moved 229 | 4 225 Core . | . . Treads 138 | . 138 Legs . | . . Wheels 91 | 4 87 Hover . | . . Flight . | . . Fastest Speed 100 | 100 100 Average Speed 136 | 100 136 Slowest Speed 160 | 100 160 Overloaded Moves . | . . Propulsion Burnouts . | . . Robots Hopped . | . . Cave-ins Triggered . | . . Exploration Rate (%) 26 | 2 51 Regions Visited 1 Branch Regions . Pre-discovered Areas . | . . Known Exits Taken . | . . Unknown Exits Taken 1 | 1 . Scrap Searched . | . . Spaces Dug . | . . Terrain Destroyed 6 | . 6 Melee . | . . Projectile . | . . AOE 6 | . 6 Terrain Rammed . | . . Walls Destroyed . | . . Machines Disabled . | . . Actions | -11 -10 --------- Run | Scr Mat Total 283 | 10 273 Wait . | . . Move 228 | 3 225 Hop . | . . Pick Up 7 | . 7 Fast Attach 1 | . 1 Attach 4 | 2 2 Detach . | . . Swap 4 | 1 3 Drop 3 | 2 1 Fire 36 | 2 34 Melee . | . . Ram . | . . Kick . | . . Crush . | . . Escape Stasis . | . . Rewire . | . . Trap . | . . Miscellaneous . | . . Route ------- -11/Scrapyard -10/Materials (discovered 1 exit: [*Min]) History --------- Turn | Location | Event 12 | -11/Scrapyard | Discovered new exit (range 3) 15 | -11/Scrapyard | Entered Materials 105 | -10/Materials | Discovered new exit (range 14) 172 | -10/Materials | Core integrity fell below 50% 172 | -10/Materials | Core integrity fell below 20% 175 | -10/Materials | Destroyed 7 combat bots 312 | -10/Materials | Build established: Mutant 430 | -10/Materials | Destroyed by exploding Fusion Modulator Last Messages --------------- >>Trojan(Botnet) Trojan loaded successfully. Testing... Terminal linked with 1 system. Awaiting botnet instructions. 00382_ K-01 Serf cleans the Recycling Unit. 00386_ K-01 Serf collects debris. 00404_ K-01 Serf cleans the Fusion Modulator. 00404_ K-01 Serf cleans the Recycling Unit. 00408_ K-01 Serf cleans the Fusion Modulator. 00408_ K-01 Serf cleans the Recycling Unit. 00412_ K-01 Serf collects debris. 00414_ K-01 Serf cleans the Fusion Modulator. 00430_ Triggered EMP Trap. 00430_ A bubble of electromagnetic force engulfs the area. 00430_ EMP Trap short circuited. 00430_ Fusion Modulator explodes. 00430_ A bubble of electromagnetic force engulfs the area. 00430_ T-07 Excavator destroyed. 00430_ EMP Trap short circuited. Map ----- +----------------------------------------------------+ | ??????????????????????????????????????????? | | ??????????????????????????????????????????? | | ??????????????????????????????????????????? | | ?????????????????????????????????????###### | | ?????????????????????????????????????# | | ?????????????????????????????????????# | | ?????????????????????????????????????# | | ?????????????????????????????????????# | | ?????????????????????????????????????# | | ?????????????????????????????????????# """ | | ????????????????? ?????????????????# """ | | ????????????????? +????????????????# """ | | ????????????????? #????????????????###### | | ????????????????# #????????? ???????#### | | ?????????######## #????????? ??????""" " | | ?????????#! T ## #????????? T"?# """""" | | ?????????# ## #????????? ""?# """"" | | ?????????# ## #????????? ?# | | ???####### """ ## #????????? ??# | | ??? ## """ ## #????????? ??# | | ?? """ ## """ ##= #????????? ??# | | ??""""" ## ##%= ##???????? ??######## | | ? """"" ####+###!*| ##########+########### | | # """"" # o % | | # """ + ^ | | # # = @ !!! | | # [ ### ""![ k""" !!! ######### | | # #?# "Y==! """ !! # # | | # ! #?# ""==* """ | | # =#?# = < | | #########?# k | | ?????????##+####+### #####" "# | | ?????????# # ##???#" !"| "# | | ?????????# # """ #????#"""""""# | | ?????????# # "R ############## | | ?????????# / """ # + | | ?????????# """ """ # # # | | ?????????# """ """ # # # | | ?????????# """ """ # w !=" """ ""??+ | | ?????????# # =%" """ ""??### | | ??????????########## =!" """ ""????? | | ???????????????????# =# #?? | | ???????????????????###### #####+#######?? | | ????????????????????????# #????? ??????? | | ????????????????????????# #?????? ?????? | | ????????????????????????# #???????! ???? | | ????????????????????????# #???????? ??? | | ????????????????????????# #?????????? ?? | | ????????????????????????# #??????????? ? | | ????????????????????????# #?????????????? | +----------------------------------------------------+ Best States ------------- Heat Dissipation 39 Energy Generation 10 Energy Capacity 125 Matter Stores 300 Matter Capacity 300 Sight Range 16 Terrain Scan Density 10 Evasion (%) 40 Recoil Reduction 2 Item Schematics ----------------- None Robot Schematics ------------------ None Fabricated ------------ Nothing Alien Tech Used ----------------- None Achievements -------------- None Challenges ------------ None Game ------ Seed ActuatorDerelictFirepult Manual? 0 Play Time 00:07:44 Cumulative 299.5 hours Start 2021.07.30 @ 20:23:33 End 2021.07.30 @ 20:27:34 Sessions 1 Manual Loads 0 Difficulty Rogue Special Mode None Game No. 170 Rogue 170 Adventurer 0 Explorer 0 Win Type - Total 9 Types 6/0/1/2/0/0/0/0/0 Lore% 79 Gallery% 84 Achievement% 64 Wizard Run 0 Options --------- ASCII 0 Keyboard 0 Movement Numpad Keybinds 0 Fullscreen 1 Font 18/SmallcapsGlow Map View 76x50 Tactical HUD 1 Map Filters NONE Filters NONE Steam 1 RUN: 80c00eec-3e21-449a-b43a-6b3e061e25e3